fUSD/lending_fUSD_20250630
["ID","MTS","AMOUNT","RATE_DAILY","PERIOD"]
[368651067,1751267442062,-501.16,0.00016438,2]
[368651069,1751267442071,-961.22,0.00016438,2]
[368651072,1751267442084,-490.0,0.00016438,2]
[368651074,1751267442094,-326.9122478,0.00016438,2]
[368651076,1751267442103,-490.0,0.00016438,2]
[368651078,1751267442112,-490.0,0.00016438,2]
[368651080,1751267442123,-2465.21,0.00016438,2]
[368651082,1751267442132,-627.46,0.00016438,2]
[368651084,1751267442141,-1327.29,0.00016438,2]
[368651086,1751267442152,-490.0,0.00016438,2]
[368651088,1751267442161,-490.0,0.00016438,2]
[368651090,1751267442171,-1100.19,0.00016438,2]
[368651092,1751267442180,-660.31,0.00016438,2]
[368651094,1751267442189,-490.0,0.00016438,2]
[368651096,1751267442199,-490.0,0.00016438,2]
[368651098,1751267442208,-490.0,0.00016438,2]
[368651100,1751267442217,-490.0,0.00016438,2]
[368651102,1751267442226,-490.0,0.00016438,2]
[368651104,1751267442236,-688.07,0.00016438,2]
[368651106,1751267442245,-1826.2,0.00016438,2]
[368651108,1751267442254,-541.62,0.00016438,2]
[368651110,1751267442264,-1485.67,0.00016438,2]
[368651112,1751267442273,-490.0,0.00016438,2]
[368651114,1751267442283,-490.0,0.00016438,2]
[368651116,1751267442292,-490.0,0.00016438,2]
[368651118,1751267442301,-722.51,0.00016438,2]
[368651120,1751267442310,-490.0,0.00016438,2]
[368651122,1751267442320,-570.51,0.00016438,2]
[368651124,1751267442329,-490.0,0.00016438,2]
[368651126,1751267442339,-500.0,0.00016438,2]
[368651128,1751267442348,-500.0,0.00016438,2]
[368651130,1751267442358,-500.0,0.00016438,2]
[368651132,1751267442367,-1021.64,0.00016438,2]
[368651134,1751267442376,-500.0,0.00016438,2]
[368651136,1751267442386,-500.0,0.00016438,2]
[368651138,1751267442395,-500.0,0.00016438,2]
[368651140,1751267442404,-1436.7,0.00016438,2]
[368651142,1751267442415,-490.0,0.00016438,2]
[368651144,1751267442424,-490.0,0.00016438,2]
[368651146,1751267442433,-490.0,0.00016438,2]
[368651148,1751267442442,-490.0,0.00016438,2]
[368651150,1751267442451,-1311.53,0.00016438,2]
[368651152,1751267442460,-490.0,0.00016438,2]
[368651154,1751267442470,-192.26327571,0.00016438,2]
[368651156,1751267442480,-490.0,0.00016438,2]
[368651158,1751267442489,-1254.13,0.00016438,2]
[368651160,1751267442499,-490.0,0.00016438,2]
[368651162,1751267442508,-490.0,0.00016438,2]
[368651164,1751267442517,-1313.75,0.00016438,2]
[368651166,1751267442526,-1211.69,0.00016438,2]
[368651168,1751267442535,-490.0,0.00016438,2]
[368651170,1751267442545,-530.23,0.00016438,2]
[368651172,1751267442555,-570.68,0.00016438,2]
[368651174,1751267442564,-490.0,0.00016438,2]
[368651176,1751267442573,-490.0,0.00016438,2]
[368651178,1751267442583,-490.0,0.00016438,2]
[368651180,1751267442592,-1623.94,0.00016438,2]
[368651182,1751267442602,-2476.26,0.00016438,2]
[368651184,1751267442611,-641.05,0.00016438,2]
[368651186,1751267442621,-490.0,0.00016438,2]
[368651187,1751267442630,-605.17,0.00016438,2]
[368651188,1751267442640,-519.73,0.00016438,2]
[368651189,1751267442651,-490.0,0.00016438,2]
[368651190,1751267442661,-490.0,0.00016438,2]
[368651191,1751267442670,-2476.24,0.00016438,2]
[368651192,1751267442680,-1563.29,0.00016438,2]
[368651193,1751267442689,-773.76,0.00016438,2]
[368651194,1751267442698,-2273.14,0.00016438,2]
[368651195,1751267442708,-490.0,0.00016438,2]
[368651196,1751267442718,-1957.52,0.00016438,2]
[368651197,1751267442727,-647.57,0.00016438,2]
[368651198,1751267442736,-490.0,0.00016438,2]
[368651199,1751267442746,-490.0,0.00016438,2]
[368651201,1751267442756,-490.0,0.00016438,2]
[368651203,1751267442766,-490.0,0.00016438,2]
[368651205,1751267442775,-490.0,0.00016438,2]
[368651207,1751267442785,-490.0,0.00016438,2]
[368651209,1751267442795,-490.0,0.00016438,2]
[368651211,1751267442804,-1114.66,0.00016438,2]
[368651214,1751267442814,-490.0,0.00016438,2]
[368651216,1751267442823,-490.0,0.00016438,2]
[368651219,1751267442833,-2239.62,0.00016438,2]
[368651221,1751267442843,-151.0,0.00016438,2]
[368651223,1751267442852,-151.0,0.00016438,2]
[368651225,1751267442861,-1458.3,0.00016438,2]
[368651227,1751267442870,-151.0,0.00016438,2]
[368651229,1751267442880,-490.0,0.00016438,2]
[368651231,1751267442889,-151.0,0.00016438,2]
[368651233,1751267442900,-490.0,0.00016438,2]
[368651235,1751267442909,-490.0,0.00016438,2]
[368651237,1751267442919,-4010.68,0.00016438,2]
[368651239,1751267442928,-490.0,0.00016438,2]
[368651241,1751267442937,-2108.74,0.00016438,2]
[368651243,1751267442947,-490.0,0.00016438,2]
[368651245,1751267442956,-498.04,0.00016438,2]
[368651247,1751267442966,-490.0,0.00016438,2]
[368651250,1751267442975,-1267.58,0.00016438,2]
[368651253,1751267442985,-490.0,0.00016438,2]
[368651256,1751267442995,-490.0,0.00016438,2]
[368651258,1751267443004,-957.35,0.00016438,2]
[368651259,1751267443014,-490.0,0.00016438,2]
[368651260,1751267443024,-670.71,0.00016438,2]
[368651261,1751267443033,-1688.24,0.00016438,2]
[368651262,1751267443042,-385.67414694,0.00016438,2]
[368651263,1751267443052,-490.0,0.00016438,2]
[368651264,1751267443062,-1289.57,0.00016438,2]
[368651265,1751267443071,-490.0,0.00016438,2]
[368651266,1751267443083,-490.0,0.00016438,2]
[368651267,1751267443092,-490.0,0.00016438,2]
[368651268,1751267443101,-824.49,0.00016438,2]
[368651269,1751267443111,-490.0,0.00016438,2]
[368651270,1751267443121,-490.0,0.00016438,2]
[368651271,1751267443130,-584.71,0.00016438,2]
[368651272,1751267443140,-490.0,0.00016438,2]
[368651274,1751267443151,-1185.23,0.00016438,2]
[368651276,1751267443160,-540.88,0.00016438,2]
[368651278,1751267443170,-490.0,0.00016438,2]
[368651280,1751267443179,-490.0,0.00016438,2]
[368651282,1751267443188,-549.64,0.00016438,2]
[368651284,1751267443197,-490.0,0.00016438,2]
[368651286,1751267443207,-490.0,0.00016438,2]
[368651288,1751267443215,-761.04,0.00016438,2]
[368651290,1751267443224,-490.0,0.00016438,2]
[368651291,1751267443233,-490.0,0.00016438,2]
[368651293,1751267443243,-490.0,0.00016438,2]
[368651295,1751267443252,-558.33210644,0.00016438,2]
[368651297,1751267443261,-758.81,0.00016438,2]
[368651299,1751267443270,-490.0,0.00016438,2]
[368651301,1751267443279,-818.23,0.00016438,2]
[368651303,1751267443289,-748.81,0.00016438,2]
[368651305,1751267443298,-1460.14,0.00016438,2]
[368651307,1751267443308,-490.0,0.00016438,2]
[368651309,1751267443317,-728.93,0.00016438,2]
[368651312,1751267443326,-1406.09,0.00016438,2]
[368651314,1751267443336,-490.0,0.00016438,2]
[368651316,1751267443346,-490.0,0.00016438,2]
[368651318,1751267443355,-490.0,0.00016438,2]
[368651320,1751267443365,-490.0,0.00016438,2]
[368651321,1751267443374,-490.0,0.00016438,2]
[368651323,1751267443384,-1218.17,0.00016438,2]
[368651326,1751267443396,-490.0,0.00016438,2]
[368651327,1751267443405,-1208.24,0.00016438,2]
[368651330,1751267443414,-151.0,0.00016438,2]
[368651331,1751267443423,-490.0,0.00016438,2]
[368651333,1751267443433,-490.0,0.00016438,2]
[368651335,1751267443442,-1756.52,0.00016438,2]
[368651338,1751267443451,-490.0,0.00016438,2]
[368651339,1751267443460,-490.0,0.00016438,2]
[368651342,1751267443470,-673.72,0.00016438,2]
[368651344,1751267443480,-163.019733,0.00016438,2]
[368651346,1751267443490,-670.95,0.00016438,2]
[368651348,1751267443499,-1311.29,0.00016438,2]
[368651350,1751267443508,-1805.35,0.00016438,2]
[368651352,1751267443518,-1233.48,0.00016438,2]
[368651354,1751267443527,-364.7598147,0.00016438,2]
[368651356,1751267443536,-518.88,0.00016438,2]
[368651358,1751267443546,-1813.53,0.00016438,2]
[368651360,1751267443555,-759.03,0.00016438,2]
[368651362,1751267443565,-490.0,0.00016438,2]
[368651364,1751267443573,-151.0,0.00016438,2]
[368651366,1751267443583,-490.0,0.00016438,2]
[368651368,1751267443592,-490.0,0.00016438,2]
[368651370,1751267443602,-151.0,0.00016438,2]
[368651372,1751267443611,-490.0,0.00016438,2]
[368651374,1751267443621,-490.0,0.00016438,2]
[368651376,1751267443630,-608.2,0.00016438,2]
[368651378,1751267443639,-1569.86,0.00016438,2]
[368651380,1751267443650,-151.0,0.00016438,2]
[368651382,1751267443659,-3911.58,0.00016438,2]
[368651384,1751267443671,-151.0,0.00016438,2]
[368651386,1751267443680,-151.0,0.00016438,2]
[368651388,1751267443690,-2453.59,0.00016438,2]
[368651390,1751267443699,-151.0,0.00016438,2]
[368651392,1751267443709,-986.67,0.00016438,2]
[368651394,1751267443718,-151.0,0.00016438,2]
[368651396,1751267443727,-151.0,0.00016438,2]
[368651398,1751267443737,-490.0,0.00016438,2]
[368651400,1751267443746,-151.0,0.00016438,2]
[368651402,1751267443755,-490.0,0.00016438,2]
[368651404,1751267443764,-490.0,0.00016438,2]
[368651406,1751267443773,-792.03,0.00016438,2]
[368651408,1751267443783,-534.31,0.00016438,2]
[368651410,1751267443792,-490.0,0.00016438,2]
[368651412,1751267443801,-490.0,0.00016438,2]
[368651414,1751267443811,-2907.37,0.00016438,2]
[368651416,1751267443820,-1139.12,0.00016438,2]
[368651418,1751267443829,-490.0,0.00016438,2]
[368651420,1751267443838,-1083.01,0.00016438,2]
[368651422,1751267443848,-1525.18,0.00016438,2]
[368651424,1751267443857,-490.0,0.00016438,2]
[368651426,1751267443867,-711.7,0.00016438,2]
[368651428,1751267443877,-490.0,0.00016438,2]
[368651430,1751267443886,-490.0,0.00016438,2]
[368651432,1751267443896,-805.1,0.00016438,2]
[368651433,1751267443906,-1219.45,0.00016438,2]
[368651435,1751267443915,-2489.82,0.00016438,2]
[368651437,1751267443924,-243.28871134,0.00016438,2]
[368651439,1751267443933,-490.0,0.00016438,2]
[368651440,1751267443942,-490.0,0.00016438,2]
[368651442,1751267443951,-1110.71,0.00016438,2]
[368651445,1751267443961,-2232.05,0.00016438,2]
[368651447,1751267443971,-490.0,0.00016438,2]
[368651449,1751267443981,-523.23,0.00016438,2]
[368651450,1751267443990,-905.33,0.00016438,2]
[368651452,1751267444000,-1206.95,0.00016438,2]
[368651455,1751267444009,-490.0,0.00016438,2]
[368651456,1751267444020,-490.0,0.00016438,2]
[368651458,1751267444033,-1032.86,0.00016438,2]
[368651461,1751267444043,-1399.46,0.00016438,2]
[368651463,1751267444052,-2155.96,0.00016438,2]
[368651465,1751267444061,-940.15,0.00016438,2]
[368651467,1751267444070,-798.99,0.00016438,2]
[368651470,1751267444092,-490.0,0.00016438,2]
[368651472,1751267444102,-1151.4,0.00016438,2]
[368651474,1751267444112,-1411.63,0.00016438,2]
[368651476,1751267444122,-490.0,0.00016438,2]
[368651478,1751267444131,-490.0,0.00016438,2]
[368651480,1751267444140,-490.0,0.00016438,2]
[368651482,1751267444153,-151.0,0.00016438,2]
[368651484,1751267444162,-490.0,0.00016438,2]
[368651486,1751267444171,-151.0,0.00016438,2]
[368651488,1751267444180,-151.0,0.00016438,2]
[368651490,1751267444189,-151.0,0.00016438,2]
[368651492,1751267444199,-151.0,0.00016438,2]
[368651494,1751267444208,-151.0,0.00016438,2]
[368651496,1751267444217,-490.0,0.00016438,2]
[368651498,1751267444227,-151.0,0.00016438,2]
[368651500,1751267444237,-3267.39,0.00016438,2]
[368651502,1751267444247,-1104.08,0.00016438,2]
[368651504,1751267444256,-701.32,0.00016438,2]
[368651506,1751267444265,-563.52,0.00016438,2]
[368651508,1751267444275,-946.01,0.00016438,2]
[368651510,1751267444284,-491.33,0.00016438,2]
[368651512,1751267444294,-1143.09,0.00016438,2]
[368651514,1751267444304,-490.0,0.00016438,2]
[368651516,1751267444313,-2215.67,0.00016438,2]
[368651518,1751267444323,-2238.17,0.00016438,2]
[368651520,1751267444333,-490.0,0.00016438,2]
[368651522,1751267444343,-490.0,0.00016438,2]
[368651524,1751267444352,-490.0,0.00016438,2]
[368651526,1751267444361,-155.837508,0.00016438,2]
[368651528,1751267444371,-1642.95,0.00016438,2]
[368651530,1751267444381,-500.0,0.00016438,2]
[368651532,1751267444391,-500.0,0.00016438,2]
[368651534,1751267444400,-3529.66,0.00016438,2]
[368651536,1751267444410,-500.0,0.00016438,2]
[368651538,1751267444420,-500.0,0.00016438,2]
[368651540,1751267444429,-1031.88,0.00016438,2]
[368651542,1751267444439,-500.0,0.00016438,2]
[368651545,1751267444449,-490.0,0.00016438,2]
[368651547,1751267444459,-500.0,0.00016438,2]
[368651549,1751267444469,-1010.2,0.00016438,2]
[368651551,1751267444479,-667.33,0.00016438,2]
[368651553,1751267444490,-1712.17,0.00016438,2]
[368651555,1751267444500,-490.0,0.00016438,2]
[368651557,1751267444510,-490.0,0.00016438,2]
[368651559,1751267444520,-626.08,0.00016438,2]
[368651561,1751267444530,-860.14,0.00016438,2]
[368651563,1751267444540,-500.0,0.00016438,2]
[368651565,1751267444550,-159.412781,0.00016438,2]
[368651567,1751267444560,-490.0,0.00016438,2]
[368651569,1751267444571,-490.0,0.00016438,2]
[368651571,1751267444581,-3656.02,0.00016438,2]
[368651573,1751267444591,-834.59,0.00016438,2]
[368651575,1751267444600,-490.0,0.00016438,2]
[368651577,1751267444609,-490.0,0.00016438,2]
[368651579,1751267444619,-490.0,0.00016438,2]
[368651581,1751267444629,-1030.93,0.00016438,2]
[368651583,1751267444639,-490.0,0.00016438,2]
[368651585,1751267444649,-559.77,0.00016438,2]
[368651587,1751267444659,-490.0,0.00016438,2]
[368651589,1751267444668,-490.0,0.00016438,2]
[368651592,1751267444678,-3042.8,0.00016438,2]
[368651594,1751267444687,-490.0,0.00016438,2]
[368651596,1751267444698,-490.0,0.00016438,2]
[368651598,1751267444708,-710.3,0.00016438,2]
[368651600,1751267444717,-959.3,0.00016438,2]
[368651602,1751267444726,-490.0,0.00016438,2]
[368651604,1751267444736,-490.0,0.00016438,2]
[368651606,1751267444745,-2258.69,0.00016438,2]
[368651608,1751267444755,-2433.91,0.00016438,2]
[368651610,1751267444765,-499.19,0.00016438,2]
[368651644,1751267445079,-1546.51,0.00016438,2]
[368651647,1751267445091,-490.0,0.00016438,2]
[368651649,1751267445100,-490.0,0.00016438,2]
[368651651,1751267445110,-490.0,0.00016438,2]
[368651653,1751267445121,-683.3,0.00016438,2]
[368651655,1751267445131,-490.0,0.00016438,2]
[368651657,1751267445140,-1887.4,0.00016438,2]
[368651659,1751267445151,-490.0,0.00016438,2]
[368651661,1751267445161,-533.17,0.00016438,2]
[368651663,1751267445170,-1233.56,0.00016438,2]
[368651665,1751267445179,-490.0,0.00016438,2]
[368651667,1751267445190,-490.0,0.00016438,2]
[368651669,1751267445199,-1913.05,0.00016438,2]
[368651671,1751267445209,-934.44,0.00016438,2]
[368651673,1751267445218,-731.26,0.00016438,2]
[368651675,1751267445228,-491.41234634,0.00016438,2]
[368651677,1751267445237,-490.0,0.00016438,2]
[368651679,1751267445246,-490.0,0.00016438,2]
[368651681,1751267445255,-557.85,0.00016438,2]
[368651683,1751267445265,-752.53,0.00016438,2]
[368651685,1751267445275,-490.0,0.00016438,2]
[368651687,1751267445284,-1839.15,0.00016438,2]
[368651689,1751267445294,-1061.04,0.00016438,2]
[368651691,1751267445303,-327.12881182,0.00016438,2]
[368651693,1751267445313,-1002.9,0.00016438,2]
[368651695,1751267445322,-2501.37,0.00016438,2]
[368651697,1751267445331,-490.0,0.00016438,2]
[368651699,1751267445341,-490.0,0.00016438,2]
[368651701,1751267445351,-609.73,0.00016438,2]
[368651703,1751267445361,-490.0,0.00016438,2]
[368651705,1751267445370,-1343.9,0.00016438,2]
[368651707,1751267445380,-490.0,0.00016438,2]
[368651709,1751267445389,-2212.24,0.00016438,2]
[368651711,1751267445399,-490.0,0.00016438,2]
[368651713,1751267445409,-490.0,0.00016438,2]
[368651715,1751267445418,-764.05,0.00016438,2]
[368651717,1751267445428,-490.0,0.00016438,2]
[368651719,1751267445437,-490.0,0.00016438,2]
[368651721,1751267445447,-490.0,0.00016438,2]
[368651723,1751267445456,-190.83210421,0.00016438,2]
[368651725,1751267445465,-517.86,0.00016438,2]
[368651727,1751267445475,-490.0,0.00016438,2]
[368651729,1751267445485,-151.0,0.00016438,2]
[368651731,1751267445496,-2808.96,0.00016438,2]
[368651733,1751267445505,-662.38,0.00016438,2]
[368651735,1751267445515,-671.65,0.00016438,2]
[368651737,1751267445524,-490.0,0.00016438,2]
[368651739,1751267445534,-490.0,0.00016438,2]
[368651741,1751267445544,-507.67,0.00016438,2]
[368651743,1751267445553,-231.62267973,0.00016438,2]
[368651746,1751267445564,-490.0,0.00016438,2]
[368651748,1751267445573,-490.0,0.00016438,2]
[368651750,1751267445582,-490.0,0.00016438,2]
[368651752,1751267445592,-2145.41,0.00016438,2]
[368651754,1751267445601,-151.0,0.00016438,2]
[368651756,1751267445611,-490.0,0.00016438,2]
[368651758,1751267445621,-166.942403,0.00016438,2]
[368651760,1751267445630,-672.85,0.00016438,2]
[368651762,1751267445640,-2284.2,0.00016438,2]
[368651763,1751267445650,-1011.0,0.00016438,2]
[368651766,1751267445659,-490.0,0.00016438,2]
[368651768,1751267445668,-490.0,0.00016438,2]
[368651769,1751267445678,-751.27,0.00016438,2]
[368651771,1751267445687,-490.0,0.00016438,2]
[368651772,1751267445697,-490.0,0.00016438,2]
[368651773,1751267445706,-1491.73,0.00016438,2]
[368651774,1751267445716,-875.71,0.00016438,2]
[368651775,1751267445726,-490.0,0.00016438,2]
[368651776,1751267445735,-543.73,0.00016438,2]
[368651777,1751267445745,-2953.96,0.00016438,2]
[368651778,1751267445754,-772.44,0.00016438,2]
[368651779,1751267445763,-1367.71,0.00016438,2]
[368651780,1751267445773,-714.44,0.00016438,2]
[368651781,1751267445783,-1494.37,0.00016438,2]
[368651782,1751267445792,-490.0,0.00016438,2]
[368651783,1751267445802,-663.84,0.00016438,2]
[368651785,1751267445811,-490.0,0.00016438,2]
[368651787,1751267445821,-490.0,0.00016438,2]
[368651789,1751267445831,-3356.8,0.00016438,2]
[368651791,1751267445840,-1079.29,0.00016438,2]
[368651793,1751267445850,-490.0,0.00016438,2]
[368651795,1751267445860,-3925.21,0.00016438,2]
[368651797,1751267445870,-1272.02,0.00016438,2]
[368651799,1751267445880,-2472.06,0.00016438,2]
[368651801,1751267445889,-510.15,0.00016438,2]
[368651803,1751267445899,-490.0,0.00016438,2]
[368651805,1751267445909,-3282.04,0.00016438,2]
[368651807,1751267445919,-490.0,0.00016438,2]
[368651809,1751267445928,-490.0,0.00016438,2]
[368651811,1751267445938,-490.0,0.00016438,2]
[368651813,1751267445947,-490.0,0.00016438,2]
[368651815,1751267445957,-568.77,0.00016438,2]
[368651817,1751267445966,-490.0,0.00016438,2]
[368651819,1751267445976,-2464.47,0.00016438,2]
[368651821,1751267445985,-490.0,0.00016438,2]
[368651823,1751267445995,-490.0,0.00016438,2]
[368651825,1751267446005,-490.0,0.00016438,2]
[368651827,1751267446014,-657.57,0.00016438,2]
[368651829,1751267446023,-490.0,0.00016438,2]
[368651831,1751267446033,-490.0,0.00016438,2]
[368651833,1751267446042,-1260.99,0.00016438,2]
[368651835,1751267446052,-490.0,0.00016438,2]
[368651837,1751267446062,-490.0,0.00016438,2]
[368651839,1751267446072,-575.9,0.00016438,2]
[368651841,1751267446086,-3486.76,0.00016438,2]
[368651843,1751267446095,-650.41,0.00016438,2]
[368651845,1751267446104,-490.0,0.00016438,2]
[368651847,1751267446114,-569.55,0.00016438,2]
[368651849,1751267446127,-490.0,0.00016438,2]
[368651851,1751267446137,-490.0,0.00016438,2]
[368651853,1751267446146,-490.0,0.00016438,2]
[368651855,1751267446156,-490.0,0.00016438,2]
[368651857,1751267446165,-1177.29,0.00016438,2]
[368651859,1751267446175,-3740.54,0.00016438,2]
[368651861,1751267446184,-1634.31,0.00016438,2]
[368651863,1751267446193,-625.76,0.00016438,2]
[368651865,1751267446204,-490.0,0.00016438,2]
[368651867,1751267446214,-740.73,0.00016438,2]
[368651869,1751267446223,-490.0,0.00016438,2]
[368651871,1751267446233,-490.0,0.00016438,2]
[368651873,1751267446243,-951.92,0.00016438,2]
[368651875,1751267446253,-519.44,0.00016438,2]
[368651877,1751267446263,-490.0,0.00016438,2]
[368651879,1751267446273,-484.15336862,0.00016438,2]
[368651881,1751267446282,-490.0,0.00016438,2]
[368651883,1751267446292,-154.062037,0.00016438,2]
[368651885,1751267446301,-490.0,0.00016438,2]
[368651887,1751267446311,-490.0,0.00016438,2]
[368651889,1751267446320,-1372.31,0.00016438,2]
[368651892,1751267446329,-490.0,0.00016438,2]
[368651894,1751267446339,-150.40867273,0.00016438,2]
[368651895,1751267446348,-490.0,0.00016438,2]
[368651898,1751267446359,-490.0,0.00016438,2]
[368651900,1751267446369,-490.0,0.00016438,2]
[368651902,1751267446379,-945.19,0.00016438,2]
[368651904,1751267446389,-586.15,0.00016438,2]
[368651906,1751267446399,-490.0,0.00016438,2]
[368651908,1751267446409,-981.2,0.00016438,2]
[368651910,1751267446419,-1141.47,0.00016438,2]
[368651912,1751267446429,-490.0,0.00016438,2]
[368651914,1751267446441,-490.0,0.00016438,2]
[368651916,1751267446451,-3175.15,0.00016438,2]
[368651918,1751267446461,-490.0,0.00016438,2]
[368651920,1751267446471,-832.07,0.00016438,2]
[368651922,1751267446480,-1170.01,0.00016438,2]
[368651924,1751267446490,-514.70927852,0.00016438,2]
[368651926,1751267446499,-531.2,0.00016438,2]
[368651928,1751267446509,-584.93,0.00016438,2]
[368651930,1751267446519,-490.0,0.00016438,2]
[368651932,1751267446530,-490.0,0.00016438,2]
[368651934,1751267446539,-490.0,0.00016438,2]
[368651936,1751267446549,-490.0,0.00016438,2]
[368651938,1751267446561,-2521.62,0.00016438,2]
[368651940,1751267446571,-1252.54,0.00016438,2]
[368651943,1751267446581,-490.0,0.00016438,2]
[368651945,1751267446590,-922.18,0.00016438,2]
[368651947,1751267446600,-599.14,0.00016438,2]
[368651950,1751267446610,-492.59070186,0.00016438,2]
[368651954,1751267446619,-492.59070186,0.00016438,2]
[368651957,1751267446628,-490.0,0.00016438,2]
[368651960,1751267446639,-3136.28,0.00016438,2]
[368651962,1751267446650,-3097.05,0.00016438,2]
[368651965,1751267446659,-511.63,0.00016438,2]
[368651967,1751267446669,-557.59,0.00016438,2]
[368651969,1751267446678,-490.0,0.00016438,2]
[368651971,1751267446688,-490.0,0.00016438,2]
[368651973,1751267446698,-490.0,0.00016438,2]
[368651975,1751267446707,-490.0,0.00016438,2]
[368651977,1751267446717,-490.0,0.00016438,2]
[368651979,1751267446726,-490.0,0.00016438,2]
[368651981,1751267446735,-1082.72,0.00016438,2]
[368651983,1751267446745,-490.0,0.00016438,2]
[368651985,1751267446755,-490.0,0.00016438,2]
[368651987,1751267446764,-490.0,0.00016438,2]
[368651989,1751267446773,-490.0,0.00016438,2]
[368651991,1751267446782,-3323.29,0.00016438,2]
[368651993,1751267446792,-1275.4,0.00016438,2]
[368651995,1751267446802,-896.09,0.00016438,2]
[368651997,1751267446812,-7352.81,0.00016438,2]
[368651999,1751267446822,-490.0,0.00016438,2]
[368652001,1751267446831,-490.0,0.00016438,2]
[368652003,1751267446841,-1187.38,0.00016438,2]
[368652005,1751267446851,-2729.68,0.00016438,2]
[368652007,1751267446860,-490.0,0.00016438,2]
[368652009,1751267446870,-661.4,0.00016438,2]
[368652011,1751267446880,-947.26,0.00016438,2]
[368652013,1751267446889,-3003.1,0.00016438,2]
[368652015,1751267446899,-697.57,0.00016438,2]
[368652017,1751267446909,-490.0,0.00016438,2]
[368652019,1751267446918,-506.42,0.00016438,2]
[368652021,1751267446928,-1404.12,0.00016438,2]
[368652023,1751267446937,-490.0,0.00016438,2]
[368652025,1751267446947,-699.68,0.00016438,2]
[368652027,1751267446957,-1564.05,0.00016438,2]
[368652029,1751267446966,-845.57,0.00016438,2]
[368652031,1751267446976,-2174.56,0.00016438,2]
[368652033,1751267446986,-490.0,0.00016438,2]
[368652035,1751267446995,-490.0,0.00016438,2]
[368652037,1751267447005,-490.0,0.00016438,2]
[368652039,1751267447015,-3326.54,0.00016438,2]
[368652041,1751267447024,-490.0,0.00016438,2]
[368652043,1751267447034,-738.46,0.00016438,2]
[368652045,1751267447044,-490.0,0.00016438,2]
[368652047,1751267447054,-156.839501,0.00016438,2]
[368652049,1751267447064,-826.07,0.00016438,2]
[368652051,1751267447074,-2866.33,0.00016438,2]
[368652053,1751267447090,-490.0,0.00016438,2]
[368652056,1751267447101,-490.0,0.00016438,2]
[368652058,1751267447111,-739.44,0.00016438,2]
[368652060,1751267447122,-490.0,0.00016438,2]
[368652062,1751267447132,-490.0,0.00016438,2]
[368652063,1751267447142,-490.0,0.00016438,2]
[368652065,1751267447152,-813.02,0.00016438,2]
[368652068,1751267447162,-490.0,0.00016438,2]
[368652070,1751267447171,-490.0,0.00016438,2]
[368652072,1751267447180,-2893.93,0.00016438,2]
[368652074,1751267447190,-1384.95,0.00016438,2]
[368652075,1751267447199,-490.0,0.00016438,2]